fUSD/lending_fUSD_20251112
["ID","MTS","AMOUNT","RATE_DAILY","PERIOD"]
[393688434,1762927834401,-152.0,0.00037283,7]
[393688435,1762927834410,-156.0,0.00037283,7]
[393688436,1762927834419,-152.0,0.00037283,7]
[393688437,1762927834429,-156.0,0.00037283,7]
[393688438,1762927834438,-152.0,0.00037283,7]
[393688439,1762927834448,-157.29077976,0.00037283,7]
[393688440,1762927834457,-152.0,0.00037283,7]
[393688441,1762927834473,-152.0,0.00037283,7]
[393688442,1762927834487,-152.0,0.00037283,7]
[393688443,1762927834498,-152.0,0.00037283,7]
[393688444,1762927834509,-152.0,0.00037283,7]
[393688445,1762927834519,-152.0,0.00037283,7]
[393688446,1762927834529,-152.0,0.00037283,7]
[393688447,1762927834539,-152.0,0.00037283,7]
[393688448,1762927834550,-152.0,0.00037283,7]
[393688449,1762927834561,-153.39464315,0.00037283,7]
[393688450,1762927834573,-152.0,0.00037283,7]
[393688451,1762927834583,-152.0,0.00037283,7]
[393688452,1762927834592,-500.0,0.00037308,30]
[393688453,1762927834602,-167.50010117,0.00037325,15]
[393688454,1762927834612,-1413.7439361,0.0003733,3]
[393688455,1762927834622,-500.0,0.0003734,60]
[393688456,1762927834631,-500.0,0.0003734,10]
[393688457,1762927834642,-150.0,0.0003734,60]
[393688458,1762927834652,-816.0,0.0003734,60]
[393688459,1762927834662,-150.0,0.0003734,60]
[393688460,1762927834671,-150.0,0.0003734,60]
[393688461,1762927834681,-150.0,0.0003734,60]
[393688462,1762927834690,-299.01087313,0.0003734,60]
[393688463,1762927834701,-505.25162148,0.0003734,60]
[393688464,1762927834710,-861.84,0.0003734,5]
[393688465,1762927834721,-736.39,0.0003734,5]
[393688466,1762927834731,-364.01,0.00037372,14]
[393688467,1762927834741,-410.52,0.0003738,2]
[393688468,1762927834752,-2827.4878722,0.0003739,3]
[393688469,1762927834761,-3144.94801505,0.00037397,2]
[393688470,1762927834771,-1000.0,0.000374,17]
[393688471,1762927834782,-1000.0,0.000374,17]
[393688472,1762927834792,-1000.0,0.000374,16]
[393688473,1762927834803,-1000.0,0.000374,16]
[393688474,1762927834813,-703.0,0.000374,30]
[393688475,1762927834824,-1000.0,0.000374,15]
[393688476,1762927834836,-1000.0,0.000374,15]
[393688477,1762927834846,-1000.0,0.000374,15]
[393688478,1762927834856,-1000.0,0.000374,15]
[393688479,1762927834866,-1000.0,0.000374,14]
[393688480,1762927834876,-1000.0,0.000374,14]
[393688481,1762927834886,-1000.0,0.000374,14]
[393688482,1762927834896,-1000.0,0.000374,14]
[393688483,1762927834906,-8482.4636166,0.00037415,3]
[393688484,1762927834915,-163.47,0.00037415,2]
[393688485,1762927834925,-500.0,0.00037424,7]
[393688486,1762927834934,-471.36911231,0.00037424,20]
[393688487,1762927834944,-500.0,0.00037424,20]
[393688488,1762927834953,-151.0,0.00037424,31]
[393688489,1762927834962,-151.0,0.00037424,31]
[393688490,1762927834972,-151.0,0.00037424,31]
[393688491,1762927834982,-200.074386,0.00037424,31]
[393688492,1762927834991,-151.0,0.00037424,31]
[393688493,1762927835002,-200.074386,0.00037424,31]
[393688494,1762927835016,-151.0,0.00037424,31]
[393688495,1762927835026,-200.074386,0.00037424,31]
[393688496,1762927835036,-154.278003,0.00037424,31]
[393688497,1762927835046,-200.074386,0.00037424,31]
[393688498,1762927835056,-281.858739,0.00037424,15]
[393688499,1762927835066,-151.0,0.00037424,31]
[393688500,1762927835077,-151.0,0.00037424,31]
[393688501,1762927835087,-281.858739,0.00037424,15]
[393688502,1762927835097,-281.858739,0.00037424,15]
[393688503,1762927835106,-281.858739,0.00037424,15]
[393688504,1762927835116,-151.0,0.00037424,31]
[393688505,1762927835126,-151.0,0.00037424,31]
[393688506,1762927835137,-151.0,0.00037424,31]
[393688507,1762927835147,-180.573868,0.00037424,31]
[393688508,1762927835157,-151.0,0.00037424,31]
[393688509,1762927835167,-151.0,0.00037424,31]
[393688510,1762927835177,-180.573868,0.00037424,31]
[393688511,1762927835187,-151.0,0.00037424,31]
[393688512,1762927835196,-151.0,0.00037424,31]
[393688513,1762927835206,-180.573868,0.00037424,31]
[393688514,1762927835216,-151.0,0.00037424,31]
[393688515,1762927835226,-180.573868,0.00037424,31]
[393688516,1762927835236,-151.0,0.00037424,31]
[393688517,1762927835246,-151.0,0.00037424,31]
[393688518,1762927835257,-151.0,0.00037424,31]
[393688519,1762927835267,-151.0,0.00037424,31]
[393688520,1762927835276,-151.0,0.00037424,31]
[393688521,1762927835289,-991.873806,0.00037425,2]
[393688522,1762927835298,-4373.4677842,0.00037425,2]
[393688523,1762927835307,-151.0,0.00037425,31]
[393688524,1762927835317,-151.0,0.00037425,31]
[393688525,1762927835329,-213.753346,0.00037425,31]
[393688526,1762927835339,-151.0,0.00037425,31]
[393688527,1762927835349,-213.753346,0.00037425,31]
[393688528,1762927835359,-151.0,0.00037425,31]
[393688529,1762927835549,-219.348327,0.00037425,31]
[393688530,1762927835559,-213.753346,0.00037425,31]
[393688531,1762927835568,-151.0,0.00037425,31]
[393688532,1762927835577,-213.753346,0.00037425,31]
[393688533,1762927835586,-169.410277,0.00037425,31]
[393688534,1762927835596,-163.657692,0.00037425,31]
[393688535,1762927835605,-151.0,0.00037425,31]
[393688536,1762927835615,-151.0,0.00037425,31]
[393688537,1762927835624,-181.176105,0.00037425,31]
[393688538,1762927835634,-151.0,0.00037425,31]
[393688539,1762927835643,-151.0,0.00037425,31]
[393688540,1762927835652,-157.406439,0.00037425,31]
[393688541,1762927835662,-151.0,0.00037425,31]
[393688542,1762927835671,-151.0,0.00037425,31]
[393688543,1762927835681,-151.0,0.00037425,31]
[393688544,1762927835690,-151.0,0.00037425,31]
[393688545,1762927835700,-151.0,0.00037425,31]
[393688546,1762927835710,-166.157915,0.00037425,31]
[393688547,1762927835719,-151.0,0.00037425,31]
[393688548,1762927835732,-151.0,0.00037425,31]
[393688549,1762927835742,-151.0,0.00037425,31]
[393688550,1762927835753,-203.959598,0.00037425,31]
[393688551,1762927835763,-203.959598,0.00037425,31]
[393688552,1762927835773,-151.0,0.00037425,31]
[393688553,1762927835782,-203.959598,0.00037425,31]
[393688554,1762927835792,-151.0,0.00037425,31]
[393688555,1762927835800,-203.959598,0.00037425,31]
[393688556,1762927835810,-151.0,0.00037425,31]
[393688557,1762927835820,-905.527452,0.00037425,31]
[393688558,1762927835831,-201.556004,0.00037425,31]
[393688559,1762927835841,-151.0,0.00037425,31]
[393688560,1762927835851,-905.527452,0.00037425,31]
[393688561,1762927835860,-151.0,0.00037425,31]
[393688562,1762927835869,-201.556004,0.00037425,31]
[393688563,1762927835878,-905.527452,0.00037425,31]
[393688564,1762927835887,-201.556004,0.00037425,31]
[393688565,1762927835897,-905.527452,0.00037425,31]
[393688566,1762927835907,-201.556004,0.00037425,31]
[393688567,1762927835917,-151.0,0.00037425,31]
[393688568,1762927835926,-151.0,0.00037425,31]
[393688569,1762927835935,-151.0,0.00037425,31]
[393688570,1762927835944,-151.0,0.00037425,31]
[393688571,1762927835954,-151.0,0.00037425,31]
[393688572,1762927835963,-151.0,0.00037425,31]
[393688573,1762927835972,-151.0,0.00037425,31]
[393688574,1762927835982,-151.0,0.00037425,31]
[393688575,1762927835990,-151.0,0.00037425,31]
[393688576,1762927835999,-151.0,0.00037425,31]
[393688577,1762927836010,-151.0,0.00037425,31]
[393688578,1762927836020,-151.0,0.00037425,31]
[393688579,1762927836030,-151.0,0.00037425,31]
[393688580,1762927836040,-158.679883,0.00037425,31]
[393688581,1762927836049,-151.0,0.00037425,31]
[393688582,1762927836059,-158.679883,0.00037425,31]
[393688583,1762927836068,-151.0,0.00037425,31]
[393688584,1762927836078,-158.679883,0.00037425,31]
[393688585,1762927836087,-151.0,0.00037425,31]
[393688586,1762927836096,-151.0,0.00037425,31]
[393688587,1762927836112,-158.679883,0.00037425,31]
[393688588,1762927836123,-151.0,0.00037425,31]
[393688589,1762927836132,-151.0,0.00037425,31]
[393688590,1762927836141,-154.07698,0.00037425,31]
[393688591,1762927836151,-246.473484,0.00037425,31]
[393688592,1762927836162,-151.0,0.00037425,31]
[393688593,1762927836171,-151.0,0.00037425,31]
[393688594,1762927836180,-151.0,0.00037425,31]
[393688595,1762927836190,-263.427106,0.00037425,30]
[393688596,1762927836200,-151.0,0.00037425,31]
[393688597,1762927836209,-154.192385,0.00037425,31]
[393688598,1762927836219,-151.0,0.00037425,31]
[393688599,1762927836228,-263.427106,0.00037425,30]
[393688600,1762927836238,-263.427106,0.00037425,30]
[393688601,1762927836247,-263.427106,0.00037425,30]
[393688602,1762927836256,-151.0,0.00037425,31]
[393688603,1762927836266,-1246.727996,0.00037425,31]
[393688604,1762927836275,-1246.727996,0.00037425,31]
[393688605,1762927836288,-151.0,0.00037425,31]
[393688606,1762927836298,-1246.727996,0.00037425,31]
[393688607,1762927836309,-151.0,0.00037425,31]
[393688608,1762927836318,-1246.727996,0.00037425,31]
[393688609,1762927836330,-151.0,0.00037425,31]
[393688610,1762927836339,-151.0,0.00037425,31]
[393688611,1762927836349,-913.361717,0.00037425,31]
[393688612,1762927836358,-913.361717,0.00037425,31]
[393688613,1762927836370,-913.361717,0.00037425,31]
[393688614,1762927836379,-151.0,0.00037425,31]
[393688615,1762927836388,-913.361717,0.00037425,31]
[393688616,1762927836398,-151.0,0.00037425,31]
[393688617,1762927836407,-151.0,0.00037425,31]
[393688618,1762927836416,-155.384902,0.00037425,31]
[393688619,1762927836427,-1413.7439361,0.0003743,3]
[393688620,1762927836438,-1773.3749431,0.0003744,2]
[393688621,1762927836448,-500.0,0.00037477,60]
[393688622,1762927836457,-500.0,0.00037477,10]
[393688623,1762927836467,-200.0,0.00037477,60]
[393688624,1762927836476,-816.0,0.00037477,60]
[393688625,1762927836485,-220.72794992,0.00037477,60]
[393688626,1762927836495,-157.68004741,0.00037477,60]
[393688627,1762927836504,-285.27774158,0.00037477,60]
[393688628,1762927836514,-151.0,0.00037477,31]
[393688629,1762927836523,-151.0,0.00037477,31]
[393688630,1762927836533,-251.401478,0.00037477,31]
[393688631,1762927836542,-689.312974,0.00037477,31]
[393688632,1762927836551,-154.422992,0.00037477,31]
[393688633,1762927836560,-689.312974,0.00037477,31]
[393688634,1762927836569,-689.312974,0.00037477,31]
[393688635,1762927836579,-860.807746,0.00037477,31]
[393688636,1762927836588,-151.0,0.00037477,31]
[393688637,1762927836597,-151.0,0.00037477,31]
[393688638,1762927836607,-689.312974,0.00037477,31]
[393688639,1762927836616,-151.0,0.00037477,31]
[393688640,1762927836626,-860.807746,0.00037477,31]
[393688641,1762927836635,-151.0,0.00037477,31]
[393688642,1762927836645,-860.807746,0.00037477,31]
[393688643,1762927836654,-1000.0,0.00037489,7]
[393688644,1762927836667,-1000.0,0.000375,18]
[393688645,1762927836677,-1000.0,0.000375,18]
[393688646,1762927836686,-1413.7439361,0.00037517,3]
[393688647,1762927836695,-2523.0,0.00037527,120]
[393688648,1762927836705,-500.0,0.0003759,30]
[393688649,1762927836714,-500.0,0.00037596,30]
[393688650,1762927836724,-3144.94801505,0.00037611,2]
[393688651,1762927836733,-500.0,0.00037614,60]
[393688652,1762927836742,-319.77616888,0.00037614,10]
[393688653,1762927836751,-816.0,0.00037614,60]
[393688654,1762927836761,-500.0,0.00037621,2]
[393688655,1762927836770,-1413.7439361,0.00037625,3]
[393688656,1762927836780,-500.0,0.00037634,2]
[393688657,1762927836790,-200.0,0.00037635,30]
[393688658,1762927836799,-207.4,0.00037635,30]
[393688659,1762927836808,-215.0738,0.00037635,30]
[393688660,1762927836818,-223.0315306,0.00037635,30]
[393688661,1762927836828,-231.28369723,0.00037635,30]
[393688662,1762927836837,-239.84119403,0.00037635,30]
[393688663,1762927836847,-248.71531821,0.00037635,30]
[393688664,1762927836856,-257.91778498,0.00037635,30]
[393688665,1762927836866,-267.46074303,0.00037635,30]
[393688666,1762927836875,-277.35679052,0.00037635,30]
[393688667,1762927836885,-287.61899177,0.00037635,30]
[393688668,1762927836894,-298.26089446,0.00037635,30]
[393688669,1762927836904,-309.29654756,0.00037635,30]
[393688670,1762927836914,-320.74051982,0.00037635,30]
[393688671,1762927836923,-332.60791905,0.00037635,30]
[393688672,1762927836932,-344.91441206,0.00037635,30]
[393688673,1762927836942,-357.6762453,0.00037635,30]
[393688674,1762927836951,-370.91026638,0.00037635,30]
[393688675,1762927836961,-384.63394623,0.00037635,30]
[393688676,1762927836971,-398.86540225,0.00037635,30]
[393688677,1762927836980,-364.01,0.00037646,14]
[393688678,1762927836989,-372.54,0.00037647,8]
[393688679,1762927836999,-5654.9757444,0.00037669,3]
[393688680,1762927837008,-1773.3749431,0.00037678,2]
[393688681,1762927837018,-151.0,0.00037679,31]
[393688682,1762927837027,-151.0,0.00037679,31]
[393688683,1762927837037,-151.0,0.00037679,31]
[393688684,1762927837046,-152.522027,0.00037679,7]
[393688685,1762927837057,-151.0,0.00037679,30]
[393688686,1762927837066,-151.0,0.00037679,30]
[393688687,1762927837076,-151.0,0.00037679,31]
[393688688,1762927837085,-151.0,0.00037679,31]
[393688689,1762927837095,-298.44475063,0.00037679,31]
[393688690,1762927837104,-154.98782,0.00037679,31]
[393688691,1762927837113,-151.0,0.00037679,31]
[393688692,1762927837122,-151.0,0.00037679,31]
[393688693,1762927837132,-151.0,0.00037679,31]
[393688694,1762927837142,-152.064376,0.00037679,31]
[393688695,1762927837151,-297.953309,0.00037679,31]
[393688696,1762927837160,-151.0,0.00037679,31]
[393688697,1762927837169,-152.884951,0.00037679,31]
[393688698,1762927837179,-167.604056,0.00037679,31]
[393688699,1762927837188,-171.934768,0.00037679,31]
[393688700,1762927837197,-171.934768,0.00037679,31]
[393688701,1762927837207,-171.934768,0.00037679,31]
[393688702,1762927837216,-171.934768,0.00037679,31]
[393688703,1762927837225,-153.421242,0.00037679,31]
[393688704,1762927837235,-151.0,0.00037679,31]
[393688705,1762927837244,-151.909181,0.00037679,31]
[393688706,1762927837253,-151.996499,0.00037679,31]
[393688707,1762927837262,-151.85417,0.00037679,31]
[393688708,1762927837272,-151.85417,0.00037679,31]
[393688709,1762927837282,-151.85417,0.00037679,31]
[393688710,1762927837295,-151.85417,0.00037679,31]
[393688711,1762927837304,-151.0,0.00037679,31]
[393688712,1762927837314,-208.656537,0.00037679,31]
[393688713,1762927837323,-151.0,0.00037679,31]
[393688714,1762927837334,-157.301762,0.00037679,31]
[393688715,1762927837343,-151.0,0.00037679,31]
[393688716,1762927837353,-152.443395,0.00037679,31]
[393688717,1762927837363,-151.0,0.00037679,31]
[393688718,1762927837372,-151.0,0.00037679,31]
[393688719,1762927837382,-160.131401,0.00037679,31]
[393688720,1762927837391,-151.0,0.00037679,31]
[393688721,1762927837400,-247.186158,0.00037679,31]
[393688722,1762927837410,-151.0,0.00037679,31]
[393688723,1762927837420,-151.0,0.00037679,31]
[393688724,1762927837429,-152.382362,0.00037679,31]
[393688725,1762927837447,-151.0,0.00037679,31]
[393688726,1762927837458,-151.0,0.00037679,31]
[393688727,1762927837468,-217.065608,0.00037679,31]
[393688728,1762927837478,-151.0,0.00037679,31]
[393688729,1762927837487,-151.0,0.00037679,31]
[393688730,1762927837498,-153.761206,0.00037679,31]
[393688731,1762927837508,-189.318686,0.00037679,31]
[393688732,1762927837519,-156.354993,0.00037679,31]
[393688733,1762927837528,-151.0,0.00037679,31]
[393688734,1762927837694,-154.065111,0.00037679,31]
[393688735,1762927837705,-151.0,0.00037679,31]
[393688736,1762927837715,-151.0,0.00037679,31]
[393688737,1762927837724,-151.0,0.00037679,31]
[393688738,1762927837734,-153.230434,0.00037679,31]
[393688739,1762927837743,-151.0,0.00037679,31]
[393688740,1762927837757,-151.0,0.00037679,31]
[393688741,1762927837767,-151.0,0.00037679,31]
[393688742,1762927837777,-200.074386,0.00037679,31]
[393688743,1762927837787,-151.0,0.00037679,31]
[393688744,1762927837796,-200.074386,0.00037679,31]
[393688745,1762927837806,-151.0,0.00037679,31]
[393688746,1762927837815,-200.074386,0.00037679,31]
[393688747,1762927837825,-200.074386,0.00037679,31]
[393688748,1762927837835,-281.858739,0.00037679,15]
[393688749,1762927837844,-151.0,0.00037679,31]
[393688750,1762927837854,-281.858739,0.00037679,15]
[393688751,1762927837863,-281.858739,0.00037679,15]
[393688752,1762927837873,-281.858739,0.00037679,15]
[393688753,1762927837883,-151.0,0.00037679,31]
[393688754,1762927837892,-151.0,0.00037679,31]
[393688755,1762927837902,-151.0,0.00037679,31]
[393688756,1762927837911,-180.573868,0.00037679,31]
[393688757,1762927837921,-151.0,0.00037679,31]
[393688758,1762927837930,-151.0,0.00037679,31]
[393688759,1762927837942,-180.573868,0.00037679,31]
[393688760,1762927837955,-151.0,0.00037679,31]
[393688761,1762927837965,-180.573868,0.00037679,31]
[393688762,1762927837975,-151.0,0.00037679,31]
[393688763,1762927837985,-180.573868,0.00037679,31]
[393688764,1762927837994,-151.0,0.00037679,31]
[393688765,1762927838004,-151.0,0.00037679,31]
[393688766,1762927838013,-151.0,0.00037679,31]
[393688767,1762927838023,-151.0,0.00037679,31]
[393688768,1762927838033,-184.37,0.00037683,2]
[393688769,1762927838046,-4241.2318083,0.00037687,3]
[393688770,1762927838056,-167.50010111,0.00037697,15]
[393688771,1762927838080,-156.98453,0.00037697,31]
[393688772,1762927838090,-151.0,0.00037697,31]
[393688773,1762927838100,-151.0,0.00037697,31]
[393688774,1762927838110,-151.0,0.00037697,31]
[393688775,1762927838120,-151.0,0.00037697,31]
[393688776,1762927838130,-183.551841,0.00037697,31]
[393688777,1762927838140,-213.753346,0.00037697,31]
[393688778,1762927838150,-151.0,0.00037697,31]
[393688779,1762927838160,-213.753346,0.00037697,31]
[393688780,1762927838170,-151.0,0.00037697,31]
[393688781,1762927838180,-213.753346,0.00037697,31]
[393688782,1762927838190,-151.0,0.00037697,31]
[393688783,1762927838200,-213.753346,0.00037697,31]
[393688784,1762927838210,-151.0,0.00037697,31]
[393688785,1762927838220,-151.0,0.00037697,31]
[393688786,1762927838230,-202.0,0.00037697,31]
[393688787,1762927838239,-153.596794,0.00037697,31]
[393688788,1762927838249,-151.0,0.00037697,31]
[393688789,1762927838259,-151.0,0.00037697,31]
[393688790,1762927838269,-151.0,0.00037697,31]
[393688791,1762927838279,-151.0,0.00037697,31]
[393688792,1762927838293,-151.0,0.00037697,31]
[393688793,1762927838303,-152.897808,0.00037697,31]
[393688794,1762927838312,-151.0,0.00037697,31]
[393688795,1762927838323,-203.959598,0.00037697,31]
[393688796,1762927838332,-203.959598,0.00037697,31]
[393688797,1762927838342,-151.0,0.00037697,31]
[393688798,1762927838352,-203.959598,0.00037697,31]
[393688799,1762927838364,-166.301778,0.00037697,31]
[393688800,1762927838374,-203.959598,0.00037697,31]
[393688801,1762927838383,-163.830189,0.00037697,31]
[393688802,1762927838393,-905.527452,0.00037697,31]
[393688803,1762927838402,-201.556004,0.00037697,31]
[393688804,1762927838412,-156.241575,0.00037697,31]
[393688805,1762927838421,-905.527452,0.00037697,31]
[393688806,1762927838430,-151.0,0.00037697,31]
[393688807,1762927838441,-201.556004,0.00037697,31]
[393688808,1762927838451,-905.527452,0.00037697,31]
[393688809,1762927838461,-201.556004,0.00037697,31]
[393688810,1762927838471,-905.527452,0.00037697,31]
[393688811,1762927838481,-201.556004,0.00037697,31]
[393688812,1762927838491,-253.753766,0.00037697,31]
[393688813,1762927838501,-151.0,0.00037697,31]
[393688814,1762927838512,-151.0,0.00037697,31]
[393688815,1762927838521,-151.0,0.00037697,31]
[393688816,1762927838531,-151.0,0.00037697,31]
[393688817,1762927838541,-152.205394,0.00037697,31]
[393688818,1762927838551,-151.0,0.00037697,31]
[393688819,1762927838560,-151.0,0.00037697,31]
[393688820,1762927838570,-151.0,0.00037697,31]
[393688821,1762927838580,-151.0,0.00037697,31]
[393688822,1762927838590,-157.31266,0.00037697,31]
[393688823,1762927838600,-151.0,0.00037697,31]
[393688824,1762927838610,-159.937004,0.00037697,31]
[393688825,1762927838620,-158.679883,0.00037697,31]
[393688826,1762927838630,-151.0,0.00037697,31]
[393688827,1762927838640,-158.679883,0.00037697,31]
[393688828,1762927838650,-151.0,0.00037697,31]
[393688829,1762927838661,-158.679883,0.00037697,31]
[393688830,1762927838671,-151.0,0.00037697,31]
[393688831,1762927838682,-151.0,0.00037697,31]
[393688832,1762927838692,-158.679883,0.00037697,31]
[393688833,1762927838702,-273.201708,0.00037697,31]
[393688834,1762927838712,-151.0,0.00037697,31]
[393688835,1762927838723,-151.0,0.00037697,31]
[393688836,1762927838733,-151.0,0.00037697,31]
[393688837,1762927838744,-151.0,0.00037697,31]
[393688838,1762927838754,-263.427106,0.00037697,30]
[393688839,1762927838767,-151.0,0.00037697,31]
[393688840,1762927838777,-151.0,0.00037697,31]
[393688841,1762927838787,-263.427106,0.00037697,30]
[393688842,1762927838798,-263.427106,0.00037697,30]
[393688843,1762927838807,-263.427106,0.00037697,30]
[393688844,1762927838818,-151.0,0.00037697,31]
[393688845,1762927838828,-1246.727996,0.00037697,31]
[393688847,1762927838838,-1246.727996,0.00037697,31]
[393688849,1762927838848,-151.0,0.00037697,31]
[393688850,1762927838857,-1246.727996,0.00037697,31]
[393688853,1762927838867,-151.0,0.00037697,31]
[393688854,1762927838877,-1246.727996,0.00037697,31]
[393688856,1762927838887,-151.0,0.00037697,31]
[393688858,1762927838897,-271.52739,0.00037697,31]
[393688859,1762927838907,-913.361717,0.00037697,31]
[393688860,1762927838916,-913.361717,0.00037697,31]
[393688861,1762927838926,-913.361717,0.00037697,31]
[393688862,1762927838936,-913.361717,0.00037697,31]
[393688863,1762927838946,-151.0,0.00037697,31]
[393688864,1762927838956,-173.833016,0.00037697,31]
[393688865,1762927838966,-151.0,0.00037697,31]
[393688866,1762927838976,-2939.68298484,0.00037697,3]
[393688867,1762927838985,-518.69011528,0.00037706,7]
[393688868,1762927838995,-151.0,0.00037707,31]
[393688869,1762927839007,-151.0,0.00037707,31]
[393688870,1762927839018,-151.0,0.00037707,31]
[393688871,1762927839027,-171.934768,0.00037707,31]
[393688872,1762927839037,-171.934768,0.00037707,31]
[393688873,1762927839046,-171.934768,0.00037707,31]
[393688874,1762927839056,-171.934768,0.00037707,31]
[393688875,1762927839066,-151.0,0.00037707,31]
[393688876,1762927839076,-151.85417,0.00037707,31]
[393688877,1762927839086,-151.85417,0.00037707,31]
[393688878,1762927839095,-151.85417,0.00037707,31]
[393688879,1762927839105,-151.85417,0.00037707,31]
[393688880,1762927839115,-151.0,0.00037707,31]
[393688881,1762927839125,-151.0,0.00037707,31]
[393688882,1762927839135,-151.0,0.00037707,31]
[393688883,1762927839145,-151.0,0.00037707,31]
[393688884,1762927839155,-153.523491,0.00037707,31]
[393688885,1762927839165,-151.0,0.00037707,31]
[393688886,1762927839175,-151.0,0.00037707,31]
[393688887,1762927839185,-151.000003,0.00037707,31]
[393688888,1762927839194,-151.0,0.00037707,31]
[393688889,1762927839204,-151.0,0.00037707,31]
[393688890,1762927839214,-151.0,0.00037707,31]
[393688891,1762927839224,-151.0,0.00037707,31]
[393688892,1762927839235,-158.734079,0.00037707,31]
[393688893,1762927839245,-153.395961,0.00037707,31]
[393688894,1762927839255,-156.33392,0.00037707,31]
[393688895,1762927839265,-151.0,0.00037707,31]
[393688896,1762927839275,-151.0,0.00037707,31]
[393688897,1762927839289,-151.0,0.00037707,31]
[393688898,1762927839300,-213.753346,0.00037707,31]
[393688899,1762927839310,-151.0,0.00037707,31]
[393688900,1762927839319,-213.753346,0.00037707,31]
[393688901,1762927839331,-151.0,0.00037707,31]
[393688902,1762927839340,-213.753346,0.00037707,31]
[393688903,1762927839350,-213.753346,0.00037707,31]
[393688904,1762927839361,-151.0,0.00037707,31]
[393688905,1762927839371,-260.363377,0.00037707,31]
[393688906,1762927839380,-300.0,0.00037707,60]
[393688907,1762927839389,-160.0,0.00037707,60]
[393688908,1762927839399,-520.0,0.00037707,60]
[393688909,1762927839408,-200.0,0.00037707,60]
[393688910,1762927839418,-250.0,0.00037707,60]
[393688911,1762927839428,-500.0,0.00037707,60]
[393688912,1762927839439,-311.1,0.00037707,60]
[393688913,1762927839449,-151.0,0.00037707,60]
[393688914,1762927839458,-160.0,0.00037707,60]
[393688915,1762927839468,-539.24,0.00037707,60]
[393688916,1762927839478,-200.0,0.00037707,60]
[393688917,1762927839487,-500.0,0.00037707,60]
[393688918,1762927839497,-250.0,0.00037707,60]
[393688919,1762927839507,-322.6107,0.00037707,60]
[393688920,1762927839517,-151.0,0.00037707,60]
[393688921,1762927839527,-160.0,0.00037707,60]
[393688922,1762927839537,-559.19188,0.00037707,60]
[393688923,1762927839547,-200.0,0.00037707,60]
[393688924,1762927839556,-151.0,0.00037707,60]
[393688925,1762927839566,-500.0,0.00037707,60]
[393688926,1762927839576,-250.0,0.00037707,60]
[393688927,1762927839586,-334.5472959,0.00037707,60]
[393688928,1762927839595,-151.0,0.00037707,60]
[393688930,1762927839724,-160.0,0.00037707,60]
[393688931,1762927839734,-579.88197956,0.00037707,60]
[393688932,1762927839743,-200.0,0.00037707,60]
[393688933,1762927839753,-500.0,0.00037707,60]
[393688934,1762927839764,-250.0,0.00037707,60]
[393688935,1762927839774,-346.92554585,0.00037707,60]
[393688936,1762927839784,-151.0,0.00037707,60]
[393688937,1762927839794,-160.0,0.00037707,60]
[393688938,1762927839804,-601.3376128,0.00037707,60]
[393688939,1762927839814,-151.0,0.00037707,60]
[393688940,1762927839823,-151.0,0.00037707,60]